fUST/lending_fUST_20250615
["ID","MTS","AMOUNT","RATE_DAILY","PERIOD"]
[365854737,1749960643646,-491.95,0.00022739,4]
[365854739,1749960643655,-617.29,0.00022739,4]
[365854741,1749960643664,-3691.31,0.00022739,4]
[365854743,1749960643673,-460.0,0.00022739,4]
[365854745,1749960643683,-460.0,0.00022739,4]
[365854748,1749960643692,-460.0,0.00022739,4]
[365854751,1749960643702,-804.61,0.00022739,4]
[365854754,1749960643713,-602.89,0.00022739,4]
[365854758,1749960643722,-460.0,0.00022739,4]
[365854761,1749960643732,-2582.74,0.00022739,4]
[365854763,1749960643741,-460.0,0.00022739,4]
[365854765,1749960643751,-2661.58,0.00022739,4]
[365854767,1749960643764,-1394.78,0.00022739,4]
[365854769,1749960643774,-645.42,0.00022739,4]
[365854771,1749960643784,-3004.79,0.00022739,4]
[365854773,1749960643793,-1385.25,0.00022739,4]
[365854775,1749960643803,-460.0,0.00022739,4]
[365854777,1749960643813,-1319.88,0.00022739,4]
[365854779,1749960643822,-1086.48,0.00022739,4]
[365854781,1749960643831,-460.0,0.00022739,4]
[365854783,1749960643841,-460.0,0.00022739,4]
[365854785,1749960643850,-600.0,0.00022739,4]
[365854787,1749960643860,-793.12,0.00022739,4]
[365854789,1749960643869,-460.0,0.00022739,4]
[365854791,1749960643879,-569.65525983,0.00022739,4]
[365854793,1749960643888,-460.0,0.00022739,4]
[365854795,1749960643898,-474.51,0.00022739,4]
[365854797,1749960643907,-548.87,0.00022739,4]
[365854799,1749960643916,-460.0,0.00022739,4]
[365854801,1749960643925,-460.0,0.00022739,4]
[365854803,1749960643935,-460.0,0.00022739,4]
[365854805,1749960643944,-476.31,0.00022739,4]
[365854807,1749960643955,-1486.43,0.00022739,4]
[365854810,1749960643964,-460.0,0.00022739,4]
[365854812,1749960643973,-460.0,0.00022739,4]
[365854814,1749960643983,-460.0,0.00022739,4]
[365854816,1749960643992,-852.94,0.00022739,4]
[365854818,1749960644001,-1400.29,0.00022739,4]
[365854820,1749960644012,-460.0,0.00022739,4]
[365854822,1749960644021,-460.0,0.00022739,4]
[365854824,1749960644030,-1639.62,0.00022739,4]
[365854826,1749960644039,-619.19,0.00022739,4]
[365854828,1749960644048,-460.0,0.00022739,4]
[365854830,1749960644057,-1378.57,0.00022739,4]
[365854832,1749960644067,-460.0,0.00022739,4]
[365854834,1749960644076,-1626.87,0.00022739,4]
[365854836,1749960644084,-484.66,0.00022739,4]
[365854838,1749960644093,-2191.75,0.00022739,4]
[365854840,1749960644102,-882.21,0.00022739,4]
[365854842,1749960644111,-460.0,0.00022739,4]
[365854844,1749960644120,-460.0,0.00022739,4]
[365854846,1749960644131,-1876.12,0.00022739,4]
[365854848,1749960644141,-601.09,0.00022739,4]
[365854850,1749960644151,-3433.1,0.00022739,4]
[365854852,1749960644160,-506.16,0.00022739,4]
[365854854,1749960644169,-468.43147778,0.00022866,8]
[365854856,1749960644177,-226.26629478,0.00022913,2]
[365854858,1749960644186,-158.0,0.00023,2]
[365854860,1749960644195,-161.25823053,0.00023,2]
[365854862,1749960644204,-468.43147778,0.00023003,8]
[365854864,1749960644213,-360.0,0.00023013,4]
[365854866,1749960644223,-460.0,0.00023013,4]
[365854869,1749960644232,-586.54,0.00023013,4]
[365854872,1749960644241,-565.22,0.00023013,4]
[365854875,1749960644250,-460.0,0.00023013,4]
[365854877,1749960644261,-460.0,0.00023013,4]
[365854879,1749960644270,-460.0,0.00023013,4]
[365854881,1749960644280,-444.58906029,0.00023013,4]
[365854883,1749960644289,-802.16,0.00023013,4]
[365854885,1749960644298,-460.0,0.00023013,4]
[365854887,1749960644307,-460.0,0.00023013,4]
[365854889,1749960644317,-618.86,0.00023013,4]
[365854891,1749960644327,-423.28597389,0.00023013,4]
[365854893,1749960644336,-460.0,0.00023013,4]
[365854895,1749960644345,-460.0,0.00023013,2]
[365854897,1749960644354,-460.0,0.00023013,4]
[365854899,1749960644364,-460.0,0.00023013,4]
[365854901,1749960644373,-491.95,0.00023013,4]
[365854903,1749960644382,-617.29,0.00023013,4]
[365854905,1749960644391,-3691.31,0.00023013,4]
[365854907,1749960644400,-460.0,0.00023013,4]
[365854909,1749960644409,-169.37276801,0.00023013,4]
[365854910,1749960644418,-460.0,0.00023013,4]
[365854911,1749960644427,-804.61,0.00023013,4]
[365854912,1749960644436,-602.89,0.00023013,4]
[365854913,1749960644445,-460.0,0.00023013,4]
[365854914,1749960644457,-2582.74,0.00023013,4]
[365854915,1749960644466,-460.0,0.00023013,4]
[365854916,1749960644475,-2661.58,0.00023013,4]
[365854917,1749960644483,-1394.78,0.00023013,4]
[365854918,1749960644495,-645.42,0.00023013,4]
[365854919,1749960644504,-3004.79,0.00023013,4]
[365854920,1749960644515,-1385.25,0.00023013,4]
[365854921,1749960644524,-460.0,0.00023013,4]
[365854922,1749960644533,-1319.88,0.00023013,4]
[365854923,1749960644542,-1086.48,0.00023013,4]
[365854924,1749960644551,-460.0,0.00023013,4]
[365854925,1749960644560,-460.0,0.00023013,4]
[365854926,1749960644569,-600.0,0.00023013,4]
[365854927,1749960644578,-793.12,0.00023013,4]
[365854928,1749960644587,-460.0,0.00023013,4]
[365854930,1749960644596,-460.0,0.00023013,4]
[365854931,1749960644605,-474.51,0.00023013,4]
[365854932,1749960644614,-548.87,0.00023013,4]
[365854933,1749960644623,-460.0,0.00023013,4]
[365854935,1749960644632,-460.0,0.00023013,4]
[365854937,1749960644641,-460.0,0.00023013,4]
[365854938,1749960644650,-476.31,0.00023013,4]
[365854940,1749960644659,-1486.43,0.00023013,4]
[365854942,1749960644668,-460.0,0.00023013,4]
[365854944,1749960644677,-460.0,0.00023013,4]
[365854946,1749960644686,-460.0,0.00023013,4]
[365854948,1749960644695,-852.94,0.00023013,4]
[365854950,1749960644704,-1400.29,0.00023013,4]
[365854953,1749960644714,-460.0,0.00023013,4]
[365854954,1749960644723,-460.0,0.00023013,4]
[365854956,1749960644732,-1639.62,0.00023013,4]
[365854958,1749960644741,-619.19,0.00023013,4]
[365854960,1749960644751,-460.0,0.00023013,4]
[365854962,1749960644760,-1378.57,0.00023013,4]
[365854964,1749960644770,-460.0,0.00023013,4]
[365854966,1749960644780,-1626.87,0.00023013,4]
[365854968,1749960644789,-484.66,0.00023013,4]
[365854970,1749960644798,-2191.75,0.00023013,4]
[365854972,1749960644807,-882.21,0.00023013,4]
[365854974,1749960644816,-460.0,0.00023013,4]
[365854976,1749960644825,-460.0,0.00023013,4]
[365854978,1749960644834,-1876.12,0.00023013,4]
[365854980,1749960644843,-601.09,0.00023013,4]
[365854982,1749960644853,-3433.1,0.00023013,4]
[365854984,1749960644862,-506.16,0.00023013,4]
[365854986,1749960644871,-500.0,0.00023099,2]
[365854988,1749960644880,-405.0,0.000231,2]
[365854990,1749960644889,-406.0,0.000231,2]
[365854992,1749960644898,-500.0,0.00023108,2]
[365854994,1749960644907,-500.0,0.00023114,2]
[365854996,1749960644916,-158.50228441,0.00023114,2]
[365854998,1749960644925,-500.0,0.00023114,2]
[365855000,1749960644934,-500.0,0.00023114,2]
[365855002,1749960644943,-500.0,0.00023133,2]
[365855004,1749960644952,-500.0,0.00023133,2]
[365855006,1749960644961,-500.0,0.00023133,2]
[365855008,1749960644970,-501.1319147,0.00023133,2]
[365855010,1749960644979,-500.0,0.00023133,2]
[365855012,1749960644988,-500.0,0.00023133,2]
[365855014,1749960644997,-500.0,0.00023133,2]
[365855016,1749960645006,-500.0,0.00023133,2]
[365855018,1749960645016,-468.43147778,0.00023141,8]
[365855019,1749960645025,-252.66161971,0.00023213,2]
[365855021,1749960645035,-500.0,0.00023213,2]
[365855023,1749960645044,-500.0,0.00023213,2]
[365855025,1749960645053,-500.0,0.00023245,2]
[365855027,1749960645063,-209.1601717,0.0002326,2]
[365855030,1749960645072,-500.0,0.00023268,2]
[365855031,1749960645082,-500.0,0.00023277,2]
[365855033,1749960645091,-468.43147778,0.00023279,8]
[365855036,1749960645101,-460.0,0.00023287,4]
[365855038,1749960645111,-586.54,0.00023287,4]
[365855040,1749960645120,-565.22,0.00023287,4]
[365855041,1749960645131,-391.84010597,0.00023287,4]
[365855043,1749960645142,-460.0,0.00023287,4]
[365855045,1749960645151,-802.16,0.00023287,4]
[365855048,1749960645161,-202.69568434,0.00023287,4]
[365855049,1749960645170,-460.0,0.00023287,4]
[365855051,1749960645181,-460.0,0.00023287,2]
[365855053,1749960645194,-460.0,0.00023287,4]
[365855055,1749960645206,-460.0,0.00023287,4]
[365855057,1749960645216,-491.95,0.00023287,4]
[365855059,1749960645225,-617.29,0.00023287,4]
[365855061,1749960645234,-3691.31,0.00023287,4]
[365855063,1749960645243,-460.0,0.00023287,4]
[365855065,1749960645252,-460.0,0.00023287,4]
[365855067,1749960645262,-804.61,0.00023287,4]
[365855069,1749960645271,-602.89,0.00023287,4]
[365855071,1749960645279,-460.0,0.00023287,4]
[365855073,1749960645290,-2582.74,0.00023287,4]
[365855075,1749960645301,-460.0,0.00023287,4]
[365855077,1749960645310,-2661.58,0.00023287,4]
[365855079,1749960645319,-1394.78,0.00023287,4]
[365855081,1749960645328,-645.42,0.00023287,4]
[365855083,1749960645337,-3004.79,0.00023287,4]
[365855085,1749960645347,-1385.25,0.00023287,4]
[365855087,1749960645356,-460.0,0.00023287,4]
[365855089,1749960645366,-1319.88,0.00023287,4]
[365855091,1749960645375,-1086.48,0.00023287,4]
[365855093,1749960645384,-460.0,0.00023287,4]
[365855095,1749960645395,-460.0,0.00023287,4]
[365855097,1749960645405,-600.0,0.00023287,4]
[365855099,1749960645414,-793.12,0.00023287,4]
[365855101,1749960645423,-460.0,0.00023287,4]
[365855103,1749960645432,-460.0,0.00023287,4]
[365855105,1749960645441,-474.51,0.00023287,4]
[365855107,1749960645452,-548.87,0.00023287,4]
[365855109,1749960645461,-460.0,0.00023287,4]
[365855111,1749960645470,-460.0,0.00023287,4]
[365855113,1749960645479,-460.0,0.00023287,4]
[365855115,1749960645488,-476.31,0.00023287,4]
[365855117,1749960645497,-1486.43,0.00023287,4]
[365855119,1749960645506,-460.0,0.00023287,4]
[365855121,1749960645516,-460.0,0.00023287,4]
[365855123,1749960645525,-460.0,0.00023287,4]
[365855125,1749960645534,-852.94,0.00023287,4]
[365855127,1749960645544,-1400.29,0.00023287,4]
[365855129,1749960645553,-460.0,0.00023287,4]
[365855131,1749960645563,-460.0,0.00023287,4]
[365855133,1749960645572,-1639.62,0.00023287,4]
[365855135,1749960645581,-619.19,0.00023287,4]
[365855137,1749960645591,-460.0,0.00023287,4]
[365855139,1749960645600,-1378.57,0.00023287,4]
[365855141,1749960645609,-460.0,0.00023287,4]
[365855143,1749960645618,-1626.87,0.00023287,4]
[365855145,1749960645627,-484.66,0.00023287,4]
[365855147,1749960645636,-2191.75,0.00023287,4]
[365855149,1749960645645,-882.21,0.00023287,4]
[365855151,1749960645655,-460.0,0.00023287,4]
[365855153,1749960645664,-460.0,0.00023287,4]
[365855155,1749960645673,-1876.12,0.00023287,4]
[365855157,1749960645683,-601.09,0.00023287,4]
[365855159,1749960645691,-3433.1,0.00023287,4]
[365855161,1749960645701,-62429.22,0.000233,7]
[365855163,1749960645710,-158.0,0.000233,3]
[365855165,1749960645719,-158.0,0.000233,3]
[365855167,1749960645728,-158.0,0.000233,3]
[365855169,1749960645737,-158.0,0.000233,3]
[365855171,1749960645747,-964.0,0.00023308,2]
[365855172,1749960645756,-653.0,0.00023308,2]
[365855174,1749960645766,-2160.0,0.00023308,2]
[365855176,1749960645775,-500.0,0.00023313,2]
[365855178,1749960645785,-500.0,0.00023322,2]
[365855180,1749960645794,-226.26629478,0.00023324,2]
[365855182,1749960645805,-500.0,0.00023325,2]
[365855184,1749960645814,-500.0,0.00023338,2]
[365855185,1749960645823,-500.0,0.00023342,2]
[365855186,1749960645832,-500.0,0.00023346,2]
[365855187,1749960645842,-36.99577109,0.00023349,2]
[365855189,1749960646132,-460.0,0.00022191,4]
[365855190,1749960646143,-460.0,0.00022465,4]
[365855191,1749960646154,-201.56654318,0.00022739,4]
[365855192,1749960646165,-222.28493905,0.00023287,4]
[365855193,1749960646179,-283.87506095,0.00023287,4]
[365855194,1749960646189,-463.00422891,0.00023349,2]
[365855195,1749960646199,-373.99794586,0.00023367,2]
[365855196,1749960646208,-158.9019424,0.0002337,2]
[365855197,1749960646217,-156.5325547,0.0002337,2]
[365855198,1749960646226,-156.8421927,0.0002337,2]
[365855199,1749960646235,-258.02434077,0.0002337,2]
[365855201,1749960646526,-592.73,0.00021917,4]
[365855202,1749960646535,-327.27,0.0002337,2]
[365855209,1749960828269,5098.2,0.00024658,120]
[365855214,1749961061365,201.453108,0.00013699,2]
[365855216,1749961152330,-201.453108,0.00020187,2]
[365855217,1749961152355,-181.586905,0.00020732,2]
[365855218,1749961152381,-257.314672,0.0002077,2]
[365855219,1749961152401,-158.0,0.00021,2]
[365855220,1749961152422,-158.0,0.00021,2]
[365855221,1749961152444,-158.0,0.00021,3]
[365855222,1749961152465,-500.0,0.00021154,2]
[365855223,1749961152486,-150.0,0.000212,2]
[365855224,1749961152522,-169.785493,0.00021441,2]
[365855225,1749961152545,-169.785493,0.00021549,2]
[365855226,1749961152567,-1983.82,0.00021653,2]
[365855227,1749961152588,-153.36631392,0.00021817,2]
[365855228,1749961152610,-300.0,0.00021916,2]
[365855229,1749961152631,-300.0,0.00021916,2]
[365855230,1749961152653,-463.5,0.00021917,4]
[365855231,1749961152674,-265.46010086,0.00021917,4]
[365855232,1749961152695,-345.92791422,0.00021917,4]
[365855238,1749961628284,-429.06899679,0.00020851,2]
[365855239,1749961630141,-5486.52397911,0.00020851,2]
[365855240,1749961630162,-666.0,0.00020931,2]
[365855241,1749961630184,-2075.48266878,0.00021,2]
[365855242,1749961633125,-473.29229058,0.00021,2]
[365855243,1749961635230,-328.48357415,0.00021,2]
[365855244,1749961641098,-428.74146649,0.00021,2]
[365855245,1749961641121,-300.0,0.00021151,2]
[365855246,1749961641142,-300.0,0.00021153,2]
[365855247,1749961641163,-444.04904613,0.00021154,2]
[365855261,1749961831713,-247.09739501,0.00020421,2]
[365855262,1749961831722,-55.95095387,0.00021154,2]
[365855264,1749961831732,-1958.57,0.00021641,2]
[365855267,1749961831741,-153.36631391,0.00021817,2]
[365855268,1749961831751,-300.0,0.00021916,2]
[365855269,1749961831760,-400.0,0.00021917,4]
[365855270,1749961831770,-460.0,0.00021917,4]
[365855271,1749961831779,-460.0,0.00021917,4]
[365855272,1749961831789,-460.0,0.00021917,4]
[365855273,1749961831799,-104.59568914,0.00021917,4]
[365855278,1749961831878,-356.59088752,0.00021917,4]
[365855280,1749961831888,-337.23127082,0.00021917,4]
[365855282,1749961831898,-511.38,0.00021917,4]
[365855283,1749961831908,-483.61,0.00021917,4]
[365855284,1749961831917,-460.0,0.00021917,4]
[365855285,1749961831927,-378.16444686,0.00021917,4]
[365855286,1749961831936,-463.30903277,0.00021917,4]
[365855287,1749961831946,-710.26,0.00021917,4]
[365855288,1749961831956,-460.0,0.00021917,4]
[365855289,1749961831965,-460.0,0.00021917,4]
[365855290,1749961831976,-460.0,0.00021917,4]
[365855291,1749961831986,-406.37513883,0.00021917,4]
[365855292,1749961831995,-202.69568434,0.00021917,4]
[365855293,1749961832005,-515.27,0.00021917,4]
[365855294,1749961832014,-350.0,0.00021917,4]
[365855295,1749961832024,-502.21044883,0.00021917,2]
[365855296,1749961832033,-460.0,0.00021917,4]
[365855297,1749961832043,-1744.52,0.00021917,4]
[365855298,1749961832053,-460.0,0.00021917,2]
[365855299,1749961832063,-3074.37,0.00021917,4]
[365855300,1749961832074,-460.0,0.00021917,4]
[365855301,1749961832084,-594.61375286,0.00021917,4]
[365855302,1749961832093,-560.41,0.00021917,4]
[365855303,1749961832102,-460.0,0.00021917,4]
[365855304,1749961832112,-544.96,0.00021917,4]
[365855305,1749961832122,-460.0,0.00021917,4]
[365855306,1749961832131,-741.41,0.00021917,4]
[365855307,1749961832140,-584.19,0.00021917,4]
[365855308,1749961832150,-460.0,0.00021917,4]
[365855309,1749961832159,-3314.69,0.00021917,4]
[365855310,1749961832169,-460.0,0.00021917,4]
[365855311,1749961832178,-460.0,0.00021917,4]
[365855312,1749961832188,-2372.39,0.00021917,4]
[365855313,1749961832198,-460.0,0.00021917,4]
[365855314,1749961832207,-2510.16,0.00021917,4]
[365855315,1749961832216,-460.0,0.00021917,4]
[365855316,1749961832226,-2765.32,0.00021917,4]
[365855317,1749961832236,-460.0,0.00021917,4]
[365855318,1749961832246,-460.0,0.00021917,4]
[365855319,1749961832255,-1267.56,0.00021917,4]
[365855320,1749961832265,-1245.92,0.00021917,4]
[365855321,1749961832274,-460.0,0.00021917,4]
[365855322,1749961832284,-199.04731646,0.00021917,4]
[365855323,1749961832294,-1024.72,0.00021917,4]
[365855324,1749961832303,-1188.56,0.00021917,4]
[365855325,1749961832313,-460.0,0.00021917,4]
[365855326,1749961832322,-710.13,0.00021917,4]
[365855327,1749961832331,-460.0,0.00021917,4]
[365855328,1749961832341,-460.0,0.00021917,4]
[365855329,1749961832350,-460.0,0.00021917,4]
[365855330,1749961832360,-460.0,0.00021917,4]
[365855331,1749961832369,-460.0,0.00021917,4]
[365855332,1749961832379,-507.73,0.00021917,4]
[365855333,1749961832388,-460.0,0.00021917,4]
[365855334,1749961832398,-460.0,0.00021917,4]
[365855335,1749961832407,-460.0,0.00021917,4]
[365855336,1749961832417,-460.0,0.00021917,4]
[365855337,1749961832426,-460.0,0.00021917,4]
[365855338,1749961832435,-528.76,0.00021917,4]
[365855339,1749961832445,-460.0,0.00021917,4]
[365855340,1749961832454,-382.15878531,0.00021917,4]
[365855341,1749961832463,-835.66,0.00021917,4]
[365855342,1749961832473,-460.0,0.00021917,4]
[365855343,1749961832482,-1335.03,0.00021917,4]
[365855344,1749961832492,-460.0,0.00021917,4]
[365855345,1749961832501,-440.0,0.00021917,4]
[365855346,1749961832510,-460.0,0.00021917,4]
[365855347,1749961832519,-460.0,0.00021917,4]
[365855348,1749961832528,-460.0,0.00021917,4]
[365855349,1749961832538,-1351.86,0.00021917,4]
[365855350,1749961832547,-2031.85,0.00021917,4]
[365855351,1749961832556,-597.57,0.00021917,4]
[365855352,1749961832566,-460.0,0.00021917,4]
[365855353,1749961832575,-460.0,0.00021917,4]
[365855354,1749961832584,-460.0,0.00021917,4]
[365855355,1749961832593,-460.0,0.00021917,4]
[365855356,1749961832602,-460.0,0.00021917,4]
[365855357,1749961832611,-460.0,0.00021917,4]
[365855358,1749961832621,-420.0,0.00021917,4]
[365855359,1749961832630,-460.0,0.00021917,4]
[365855360,1749961832639,-1239.37,0.00021917,4]
[365855361,1749961832648,-840.14,0.00021917,4]
[365855362,1749961832658,-1455.47,0.00021917,4]
[365855363,1749961832667,-460.0,0.00021917,4]
[365855364,1749961832676,-460.0,0.00021917,4]
[365855365,1749961832687,-190.0,0.00021917,4]
[365855366,1749961832696,-2193.53,0.00021917,4]
[365855367,1749961832705,-571.53,0.00021917,4]
[365855368,1749961832714,-500.0,0.00021917,4]
[365855369,1749961832723,-574.51246804,0.00021917,4]
[365855370,1749961832733,-465.87538819,0.00021917,4]
[365855371,1749961832742,-460.0,0.00021917,4]
[365855372,1749961832751,-158.0,0.00022,2]
[365855373,1749961832760,-500.0,0.0002219,2]
[365855374,1749961832769,-500.0,0.0002219,2]
[365855375,1749961832778,-500.0,0.0002219,2]
[365855376,1749961832788,-500.0,0.0002219,2]
[365855377,1749961832797,-500.0,0.0002219,2]
[365855378,1749961832806,-500.0,0.0002219,2]
[365855379,1749961832817,-500.0,0.0002219,2]
[365855380,1749961832827,-500.0,0.0002219,2]
[365855381,1749961832836,-500.0,0.0002219,2]
[365855382,1749961832845,-500.0,0.0002219,2]
[365855383,1749961832854,-500.0,0.0002219,2]
[365855384,1749961832863,-500.0,0.0002219,2]
[365855385,1749961832872,-500.0,0.0002219,2]
[365855386,1749961832881,-500.0,0.0002219,2]
[365855387,1749961832890,-410.28528038,0.0002219,2]
[365855388,1749961832899,-500.0,0.0002219,2]
[365855389,1749961832909,-500.0,0.0002219,2]
[365855390,1749961832917,-500.0,0.0002219,2]
[365855391,1749961832926,-500.0,0.0002219,2]
[365855392,1749961832936,-495.46387812,0.00022191,4]
[365855393,1749961832945,-460.0,0.00022191,4]
[365855394,1749961832954,-460.0,0.00022191,4]
[365855395,1749961832963,-511.38,0.00022191,4]
[365855396,1749961832972,-483.61,0.00022191,4]
[365855397,1749961832981,-520.0,0.00022191,4]
[365855398,1749961832990,-710.26,0.00022191,4]
[365855399,1749961833000,-420.0,0.00022191,4]
[365855400,1749961833009,-515.27,0.00022191,4]
[365855401,1749961833019,-460.0,0.00022191,4]
[365855402,1749961833028,-1744.52,0.00022191,4]
[365855403,1749961833039,-460.0,0.00022191,2]
[365855404,1749961833048,-3074.37,0.00022191,4]
[365855405,1749961833059,-460.0,0.00022191,4]
[365855406,1749961833069,-560.41,0.00022191,4]
[365855407,1749961833078,-460.0,0.00022191,4]
[365855408,1749961833088,-544.96,0.00022191,4]
[365855409,1749961833097,-460.0,0.00022191,4]
[365855410,1749961833106,-741.41,0.00022191,4]
[365855411,1749961833115,-584.19,0.00022191,4]
[365855412,1749961833126,-460.0,0.00022191,4]
[365855413,1749961833135,-3314.69,0.00022191,4]
[365855414,1749961833145,-460.0,0.00022191,4]
[365855415,1749961833154,-460.0,0.00022191,4]
[365855416,1749961833163,-2372.39,0.00022191,4]
[365855417,1749961833173,-460.0,0.00022191,4]
[365855418,1749961833182,-2510.16,0.00022191,4]
[365855419,1749961833192,-460.0,0.00022191,4]
[365855420,1749961833201,-2765.32,0.00022191,4]
[365855421,1749961833212,-460.0,0.00022191,4]
[365855422,1749961833221,-460.0,0.00022191,4]
[365855423,1749961833232,-1267.56,0.00022191,4]
[365855424,1749961833241,-1245.92,0.00022191,4]
[365855425,1749961833251,-440.0,0.00022191,4]
[365855426,1749961833260,-1024.72,0.00022191,4]
[365855427,1749961833270,-1188.56,0.00022191,4]
[365855428,1749961833279,-710.13,0.00022191,4]
[365855429,1749961833289,-460.0,0.00022191,4]
[365855430,1749961833298,-460.0,0.00022191,4]
[365855431,1749961833308,-460.0,0.00022191,4]
[365855432,1749961833317,-460.0,0.00022191,4]
[365855433,1749961833326,-460.0,0.00022191,4]
[365855434,1749961833336,-507.73,0.00022191,4]
[365855435,1749961833345,-460.0,0.00022191,4]
[365855436,1749961833355,-460.0,0.00022191,4]
[365855437,1749961833364,-460.0,0.00022191,4]
[365855438,1749961833373,-460.0,0.00022191,4]
[365855439,1749961833383,-460.0,0.00022191,4]
[365855440,1749961833393,-528.76,0.00022191,4]
[365855441,1749961833403,-460.0,0.00022191,4]
[365855442,1749961833413,-835.66,0.00022191,4]
[365855443,1749961833422,-460.0,0.00022191,4]
[365855444,1749961833431,-1335.03,0.00022191,4]
[365855445,1749961833441,-460.0,0.00022191,4]
[365855446,1749961833450,-460.0,0.00022191,4]
[365855447,1749961833459,-460.0,0.00022191,4]
[365855448,1749961833469,-1351.86,0.00022191,4]
[365855449,1749961833479,-2031.85,0.00022191,4]
[365855450,1749961833489,-597.57,0.00022191,4]
[365855451,1749961833498,-460.0,0.00022191,4]
[365855452,1749961833508,-460.0,0.00022191,4]
[365855453,1749961833518,-460.0,0.00022191,4]
[365855454,1749961833527,-173.18158274,0.00022191,4]
[365855455,1749961833536,-460.0,0.00022191,4]
[365855456,1749961833545,-460.0,0.00022191,4]
[365855457,1749961833555,-460.0,0.00022191,4]
[365855458,1749961833564,-1239.37,0.00022191,4]
[365855459,1749961833574,-840.14,0.00022191,4]
[365855460,1749961833583,-1455.47,0.00022191,4]
[365855461,1749961833593,-460.0,0.00022191,4]
[365855462,1749961833602,-460.0,0.00022191,4]
[365855463,1749961833612,-2193.53,0.00022191,4]
[365855464,1749961833621,-571.53,0.00022191,4]
[365855465,1749961833630,-460.0,0.00022191,4]
[365855466,1749961833640,-207.4,0.00022205,2]
[365855467,1749961833649,-150.84419652,0.00022365,2]
[365855468,1749961833658,-504.8396838,0.00022394,2]
[365855469,1749961833667,-460.0,0.00022465,4]
[365855470,1749961833676,-460.0,0.00022465,4]
[365855471,1749961833686,-511.38,0.00022465,4]
[365855472,1749961833695,-483.61,0.00022465,4]
[365855473,1749961833704,-710.26,0.00022465,4]
[365855474,1749961833713,-515.27,0.00022465,4]
[365855475,1749961833722,-1744.52,0.00022465,4]
[365855476,1749961833731,-460.0,0.00022465,2]
[365855477,1749961833741,-3074.37,0.00022465,4]
[365855478,1749961833750,-460.0,0.00022465,4]
[365855479,1749961833759,-560.41,0.00022465,4]
[365855480,1749961833768,-460.0,0.00022465,4]
[365855481,1749961833777,-544.96,0.00022465,4]
[365855482,1749961833786,-460.0,0.00022465,4]
[365855483,1749961833796,-741.41,0.00022465,4]
[365855484,1749961833805,-584.19,0.00022465,4]
[365855485,1749961833816,-460.0,0.00022465,4]
[365855486,1749961833829,-3314.69,0.00022465,4]
[365855487,1749961833838,-169.37276801,0.00022465,4]
[365855488,1749961833848,-2372.39,0.00022465,4]
[365855489,1749961833858,-460.0,0.00022465,4]
[365855490,1749961833867,-2510.16,0.00022465,4]
[365855491,1749961833876,-460.0,0.00022465,4]
[365855492,1749961833886,-2765.32,0.00022465,4]